fUSD/lending_fUSD_20241002
["ID","MTS","AMOUNT","RATE_DAILY","PERIOD"]
[339702911,1727878233277,-1000.0,0.00013806,2]
[339702912,1727878233291,-1000.0,0.00013806,2]
[339702913,1727878233300,-1000.0,0.00013806,2]
[339702914,1727878233310,-1000.0,0.00013806,2]
[339702915,1727878233320,-1000.0,0.00013806,2]
[339702916,1727878233331,-444.0,0.00013806,2]
[339702917,1727878233341,-500.0,0.00013889,2]
[339702918,1727878233351,-500.0,0.00013889,2]
[339702919,1727878233362,-383.05972127,0.00013889,2]
[339702920,1727878233373,-151.0,0.0001389,2]
[339702921,1727878233382,-151.0,0.0001389,2]
[339702922,1727878233391,-151.0,0.0001389,2]
[339702923,1727878233402,-151.0,0.0001389,2]
[339702924,1727878233412,-151.0,0.0001389,2]
[339702925,1727878233422,-151.0,0.0001389,2]
[339702926,1727878233433,-151.0,0.0001389,2]
[339702927,1727878233444,-151.0,0.0001389,2]
[339702928,1727878233454,-151.0,0.0001389,2]
[339702929,1727878233464,-151.0,0.0001389,2]
[339702930,1727878233474,-151.0,0.0001389,2]
[339702931,1727878233484,-151.0,0.0001389,2]
[339702932,1727878233493,-151.0,0.0001389,2]
[339702933,1727878233503,-260.037502,0.0001389,2]
[339702934,1727878233513,-151.0,0.0001389,2]
[339702935,1727878233522,-151.0,0.0001389,2]
[339702936,1727878233533,-151.0,0.0001389,2]
[339702937,1727878233542,-151.0,0.0001389,2]
[339702938,1727878233552,-151.0,0.0001389,2]
[339702939,1727878233562,-151.0,0.0001389,2]
[339702940,1727878233571,-62702.57313249,0.0001389,2]
[339702941,1727878233586,-689.30241408,0.0001389,2]
[339702942,1727878233603,-300.0,0.0001389,2]
[339702943,1727878233622,-365.11281553,0.0001389,2]
[339702944,1727878233632,-214.569697,0.0001389,2]
[339702945,1727878233641,-151.0,0.0001389,2]
[339702946,1727878233651,-151.289172,0.0001389,2]
[339702947,1727878233660,-151.0,0.0001389,2]
[339702948,1727878233670,-151.0,0.0001389,2]
[339702949,1727878233679,-151.0,0.0001389,2]
[339702950,1727878233689,-151.0,0.0001389,2]
[339702951,1727878233699,-151.0,0.0001389,2]
[339702952,1727878233709,-151.0,0.0001389,2]
[339702953,1727878233718,-151.0,0.0001389,2]
[339702954,1727878233728,-251.267697,0.0001389,2]
[339702955,1727878233737,-151.0,0.0001389,2]
[339702956,1727878233746,-151.0,0.000139,2]
[339702957,1727878233755,-151.0,0.000139,2]
[339702958,1727878233765,-151.0,0.000139,2]
[339702959,1727878233775,-151.0,0.000139,2]
[339702960,1727878233785,-151.0,0.000139,2]
[339702961,1727878233795,-151.0,0.000139,2]
[339702962,1727878233804,-151.0,0.000139,2]
[339702963,1727878233814,-184.9795,0.000139,2]
[339702964,1727878233824,-151.0,0.000139,2]
[339702965,1727878233838,-151.499801,0.000139,2]
[339702966,1727878233848,-151.0,0.000139,2]
[339702967,1727878233858,-500.0,0.000139,5]
[339702968,1727878233867,-304.52879013,0.000139,2]
[339702969,1727878233877,-151.0,0.000139,2]
[339702970,1727878233887,-1918.08571494,0.000139,2]
[339702971,1727878233910,-1308.30970965,0.000139,2]
[339702972,1727878233921,-1235.40588,0.000139,2]
[339702973,1727878233932,-1057.46883312,0.000139,2]
[339702974,1727878233947,-28621.89322589,0.000139,2]
[339702975,1727878233956,-179.65,0.00013985,2]
[339702976,1727878233966,-3793.46259596,0.00014001,2]
[339702977,1727878233975,-4571.0380614,0.00014011,2]
[339702978,1727878233984,-169.79,0.00014055,2]
[339702979,1727878233994,-165.6,0.00014112,2]
[339702980,1727878234003,-672.67,0.00014143,2]
[339702981,1727878234012,-823.0,0.00014467,2]
[339702982,1727878234022,-179.65,0.00014499,2]
[339702983,1727878234031,-1000.0,0.00014532,2]
[339702984,1727878234040,-12811.3976724,0.00014769,2]
[339702985,1727878234049,-7586.92519192,0.00014769,2]
[339702986,1727878234058,-4571.0380614,0.00014789,2]
[339702987,1727878234067,-151.0,0.00014789,2]
[339702988,1727878234077,-151.0,0.00014789,2]
[339702989,1727878234089,-151.0,0.00014789,2]
[339702990,1727878234098,-151.0,0.00014789,2]
[339702991,1727878234107,-151.0,0.00014789,2]
[339702992,1727878234118,-151.0,0.00014789,2]
[339702993,1727878234127,-304.52879013,0.000149,2]
[339702994,1727878234136,-169.79,0.00014926,2]
[339702995,1727878234146,-12811.3976724,0.0001498,2]
[339702996,1727878234155,-7586.92519192,0.0001498,2]
[339702997,1727878234165,-151.0,0.0001499,2]
[339702998,1727878234174,-151.0,0.0001499,2]
[339702999,1727878234184,-151.0,0.0001499,2]
[339703000,1727878234193,-12811.3976724,0.0001499,2]
[339703001,1727878234203,-7586.92519192,0.0001499,2]
[339703002,1727878234212,-401.31,0.00014991,2]
[339703003,1727878234222,-1067.82524521,0.00014999,5]
[339703004,1727878234232,-200.0,0.00015,2]
[339703005,1727878234241,-200.0,0.00015,2]
[339703006,1727878234251,-200.0,0.00015,2]
[339703007,1727878234261,-200.0,0.00015,2]
[339703008,1727878234270,-200.0,0.00015,2]
[339703009,1727878234279,-200.0,0.00015,2]
[339703010,1727878234292,-200.0,0.00015,2]
[339703011,1727878234302,-200.0,0.00015,2]
[339703012,1727878234311,-200.0,0.00015,2]
[339703013,1727878234321,-503.0,0.00015,2]
[339703014,1727878234334,-363.0,0.00015,2]
[339703015,1727878234343,-1000.0,0.00015,2]
[339703016,1727878234352,-1000.0,0.00015,2]
[339703017,1727878234364,-1000.0,0.00015,2]
[339703018,1727878234374,-1000.0,0.00015,2]
[339703019,1727878234384,-1000.0,0.00015,2]
[339703020,1727878234393,-1000.0,0.00015,2]
[339703021,1727878234403,-1000.0,0.00015,2]
[339703022,1727878234413,-1000.0,0.00015,2]
[339703023,1727878234423,-1000.0,0.00015,2]
[339703024,1727878234432,-1000.0,0.00015,2]
[339703025,1727878234442,-1000.0,0.00015,2]
[339703026,1727878234452,-1000.0,0.00015,2]
[339703027,1727878234462,-1000.0,0.00015,2]
[339703028,1727878234471,-1000.0,0.00015,2]
[339703029,1727878234481,-1000.0,0.00015,2]
[339703030,1727878234491,-1000.0,0.00015,2]
[339703031,1727878234501,-1000.0,0.00015,2]
[339703032,1727878234511,-350.0,0.00015,2]
[339703033,1727878234521,-152.015577,0.00015,2]
[339703034,1727878234530,-151.0,0.00015,2]
[339703035,1727878234539,-155.9016,0.00015,2]
[339703036,1727878234549,-151.0,0.00015,2]
[339703037,1727878234558,-150.0,0.00015068,2]
[339703038,1727878234568,-7030.26037716,0.00015125,2]
[339703039,1727878234578,-3793.46259596,0.00015546,2]
[339703040,1727878234591,-151.0,0.00015546,2]
[339703041,1727878234600,-151.0,0.00015546,2]
[339703042,1727878234610,-151.0,0.00015546,2]
[339703043,1727878234620,-151.0,0.00015546,2]
[339703044,1727878234629,-151.0,0.00015546,2]
[339703045,1727878234639,-151.0,0.00015556,2]
[339703046,1727878234649,-151.31859,0.00015556,2]
[339703047,1727878234659,-672.67,0.00015557,2]
[339703048,1727878234668,-4571.0380614,0.00015567,2]
[339703049,1727878234678,-1314.0,0.0001557,2]
[339703050,1727878234687,-200.0,0.000157,3]
[339703051,1727878234697,-695.78,0.00015847,2]
[339703052,1727878234707,-1418.42,0.00015866,2]
[339703053,1727878234716,-165.6,0.00015876,2]
[339703054,1727878234726,-304.52879013,0.000159,2]
[339703055,1727878234736,-1000.0,0.00015986,2]
[339703056,1727878234745,-166.31,0.00016085,2]
[339703057,1727878234755,-150.0,0.000162,2]
[339703058,1727878234765,-150.0,0.000162,2]
[339703059,1727878234774,-150.70506699,0.000162,2]
[339703060,1727878234784,-150.0,0.000162,2]
[339703061,1727878234792,-150.0,0.000162,2]
[339703062,1727878234802,-150.11004349,0.000162,2]
[339703063,1727878234811,-150.0,0.000162,2]
[339703064,1727878234821,-150.83076478,0.000162,2]
[339703065,1727878234830,-150.0,0.000162,2]
[339703066,1727878234843,-150.0,0.000162,2]
[339703067,1727878234852,-155.0,0.00016237,2]
[339703068,1727878234861,-3793.46259596,0.00016321,2]
[339703069,1727878234870,-255.0,0.00016331,2]
[339703070,1727878234879,-12811.3976724,0.00016334,2]
[339703071,1727878234889,-4571.0380614,0.00016344,2]
[339703072,1727878234898,-150.0,0.0001635,2]
[339703073,1727878234907,-167.0,0.00016414,2]
[339703074,1727878234917,-150.22,0.00016438,2]
[339703075,1727878234926,-401.31,0.0001649,2]
[339703076,1727878234935,-150.0,0.000165,2]
[339703077,1727878234945,-150.0,0.0001656,2]
[339703078,1727878234954,-150.0,0.0001656,2]
[339703079,1727878234964,-150.0,0.0001665,2]
[339703080,1727878234973,-200.0,0.000167,3]
[339703081,1727878234982,-150.0,0.000168,2]
[339703082,1727878234991,-255.0,0.00016841,2]
[339703083,1727878235001,-304.52879013,0.000169,2]
[339703084,1727878235010,-500.0,0.00016912,2]
[339703085,1727878235019,-150.0,0.0001692,2]
[339703086,1727878235028,-150.0,0.0001692,2]
[339703087,1727878235037,-150.0,0.0001695,2]
[339703088,1727878235046,-672.67,0.00016972,2]
[339703089,1727878235056,-400.0,0.00017,2]
[339703090,1727878235064,-150.0,0.000171,2]
[339703091,1727878235074,-150.0,0.000171,2]
[339703092,1727878235083,-1100.0,0.000171,6]
[339703093,1727878235092,-3793.46259596,0.00017112,2]
[339703094,1727878235102,-4571.0380614,0.00017122,2]
[339703095,1727878235111,-150.22,0.00017186,2]
[339703096,1727878235120,-1700.0,0.000172,6]
[339703097,1727878235130,-150.0,0.0001725,2]
[339703098,1727878235139,-427.2029291,0.00017261,2]
[339703099,1727878235148,-150.0,0.0001728,2]
[339703100,1727878235157,-150.0,0.0001728,2]
[339703101,1727878235166,-2200.0,0.000173,6]
[339703102,1727878235176,-167.0,0.00017317,2]
[339703103,1727878235185,-12811.3976724,0.0001736,2]
[339703104,1727878235194,-7586.92519192,0.0001736,2]
[339703105,1727878235204,-151.0,0.00017361,2]
[339703106,1727878235213,-151.0,0.00017361,2]
[339703107,1727878235222,-151.0,0.00017361,2]
[339703108,1727878235232,-151.0,0.0001737,2]
[339703109,1727878235241,-151.0,0.0001737,2]
[339703110,1727878235251,-205.560688,0.0001737,2]
[339703111,1727878235260,-151.0,0.0001739,2]
[339703112,1727878235270,-150.0,0.000174,2]
[339703113,1727878235280,-2800.0,0.000174,6]
[339703114,1727878235295,-1000.0,0.00017439,2]
[339703115,1727878235304,-151.3,0.00017448,2]
[339703116,1727878235314,-151.39,0.00017458,2]
[339703117,1727878235324,-150.66,0.00017458,2]
[339703118,1727878235337,-500.0,0.000175,6]
[339703119,1727878235346,-150.0,0.0001755,2]
[339703120,1727878235361,-152.01,0.00017558,2]
[339703121,1727878235371,-151.0,0.000176,2]
[339703122,1727878235380,-500.0,0.000176,6]
[339703123,1727878235389,-150.0,0.0001764,2]
[339703124,1727878235399,-150.0,0.0001764,2]
[339703125,1727878235408,-165.6,0.00017641,2]
[339703126,1727878235418,-222.0,0.00017671,2]
[339703127,1727878235427,-150.0,0.000177,2]
[339703128,1727878235437,-200.0,0.000177,4]
[339703129,1727878235446,-500.0,0.000177,6]
[339703130,1727878235455,-12811.3976724,0.0001779,2]
[339703131,1727878235464,-3793.46259596,0.0001779,2]
[339703132,1727878235473,-10383.02581232,0.000178,2]
[339703133,1727878235482,-500.0,0.000178,6]
[339703134,1727878235491,-150.078,0.00017831,2]
[339703135,1727878235501,-746.193,0.00017838,2]
[339703136,1727878235510,-3793.46259596,0.00017845,2]
[339703137,1727878235519,-150.0,0.0001785,2]
[339703138,1727878235529,-500.0,0.00017855,2]
[339703139,1727878235539,-500.0,0.00017856,2]
[339703140,1727878235548,-500.0,0.00017856,2]
[339703141,1727878235558,-12811.3976724,0.0001787,2]
[339703142,1727878235568,-3793.46259596,0.0001787,2]
[339703143,1727878235578,-3793.46259596,0.0001788,2]
[339703144,1727878235590,-175.21051158,0.00017888,2]
[339703145,1727878235599,-25622.7953449,0.0001789,2]
[339703146,1727878235608,-15173.8503838,0.0001789,2]
[339703147,1727878235617,-151.0,0.0001789,2]
[339703148,1727878235626,-255.300496,0.0001789,2]
[339703149,1727878235636,-151.0,0.0001789,2]
[339703150,1727878235646,-7500.0,0.0001789,2]
[339703151,1727878235655,-252.24460044,0.000179,2]
[339703152,1727878235664,-151.06,0.000179,2]
[339703153,1727878235673,-896.15590123,0.000179,2]
[339703154,1727878235683,-249.0,0.000179,2]
[339703155,1727878235692,-151.0,0.000179,2]
[339703156,1727878235701,-151.0,0.000179,2]
[339703157,1727878235711,-1100.0,0.000179,6]
[339703158,1727878235720,-4571.0380614,0.000179,2]
[339703159,1727878235729,-304.52879013,0.000179,2]
[339703160,1727878235739,-332.57150565,0.000179,2]
[339703161,1727878235748,-332.57150565,0.000179,2]
[339703162,1727878235758,-332.57150565,0.000179,2]
[339703163,1727878235767,-332.57150565,0.000179,2]
[339703164,1727878235777,-332.57150565,0.000179,2]
[339703165,1727878235786,-332.57150565,0.000179,2]
[339703166,1727878235795,-332.57150565,0.000179,2]
[339703167,1727878235804,-332.57150565,0.000179,2]
[339703168,1727878235813,-332.57150565,0.000179,2]
[339703169,1727878235822,-332.57150565,0.000179,2]
[339703170,1727878235832,-332.57150565,0.000179,2]
[339703171,1727878235848,-332.57150565,0.000179,2]
[339703172,1727878235858,-332.57150565,0.000179,2]
[339703173,1727878235867,-332.57150565,0.000179,2]
[339703174,1727878235876,-332.57150565,0.000179,2]
[339703175,1727878235885,-332.57150565,0.000179,2]
[339703176,1727878235894,-332.57150565,0.000179,2]
[339703177,1727878235904,-332.57150565,0.000179,2]
[339703178,1727878235913,-332.57150565,0.000179,2]
[339703179,1727878235922,-333.07,0.000179,2]
[339703180,1727878235932,-469.81711475,0.000179,2]
[339703181,1727878235941,-469.81711475,0.000179,2]
[339703182,1727878235950,-469.81711475,0.000179,2]
[339703183,1727878235959,-469.81711475,0.000179,2]
[339703184,1727878235968,-469.81711475,0.000179,2]
[339703185,1727878235977,-469.81711475,0.000179,2]
[339703186,1727878235987,-469.81711475,0.000179,2]
[339703187,1727878235996,-469.81711475,0.000179,2]
[339703188,1727878236006,-469.81711475,0.000179,2]
[339703189,1727878236015,-469.81711475,0.000179,2]
[339703190,1727878236024,-469.81711475,0.000179,2]
[339703191,1727878236034,-469.81711475,0.000179,2]
[339703192,1727878236043,-469.81711475,0.000179,2]
[339703193,1727878236052,-469.81711475,0.000179,2]
[339703194,1727878236061,-469.81711475,0.000179,2]
[339703195,1727878236070,-469.81711475,0.000179,2]
[339703196,1727878236080,-469.81711475,0.000179,2]
[339703197,1727878236094,-469.81711475,0.000179,2]
[339703198,1727878236104,-469.81711475,0.000179,2]
[339703199,1727878236114,-470.31,0.000179,2]
[339703200,1727878236125,-535.89280055,0.000179,2]
[339703201,1727878236135,-535.89280055,0.000179,2]
[339703202,1727878236144,-535.89280055,0.000179,2]
[339703203,1727878236153,-535.89280055,0.000179,2]
[339703204,1727878236162,-535.89280055,0.000179,2]
[339703205,1727878236172,-151.0,0.000179,2]
[339703206,1727878236181,-535.89280055,0.000179,2]
[339703207,1727878236190,-535.89280055,0.000179,2]
[339703208,1727878236199,-535.89280055,0.000179,2]
[339703209,1727878236208,-535.89280055,0.000179,2]
[339703210,1727878236218,-535.89280055,0.000179,2]
[339703211,1727878236227,-535.89280055,0.000179,2]
[339703212,1727878236236,-535.89280055,0.000179,2]
[339703213,1727878236247,-535.89280055,0.000179,2]
[339703214,1727878236256,-535.89280055,0.000179,2]
[339703215,1727878236265,-535.89280055,0.000179,2]
[339703216,1727878236275,-535.89280055,0.000179,2]
[339703217,1727878236291,-535.89280055,0.000179,2]
[339703218,1727878236301,-535.89280055,0.000179,2]
[339703219,1727878236310,-535.89280055,0.000179,2]
[339703220,1727878236319,-536.39,0.000179,2]
[339703221,1727878236330,-151.0,0.000179,2]
[339703222,1727878236341,-24275.82148388,0.000179,2]
[339703223,1727878236350,-252.15526953,0.000179,2]
[339703224,1727878236360,-150.22,0.00017933,2]
[339703225,1727878236550,-12811.3976724,0.00017958,2]
[339703226,1727878236566,-7586.92519192,0.00017958,2]
[339703227,1727878236576,-7586.92519192,0.00017968,2]
[339703228,1727878236592,-26554.2381717,0.0001797,2]
[339703229,1727878236602,-321.34348657,0.00017973,2]
[339703230,1727878236611,-564.8212458,0.00017973,2]
[339703231,1727878236621,-7586.92519192,0.00017977,2]
[339703232,1727878236631,-3793.46259596,0.00017978,2]
[339703233,1727878236641,-151.0,0.00017978,2]
[339703234,1727878236650,-151.0,0.00017978,2]
[339703235,1727878236659,-26554.2381717,0.0001798,2]
[339703236,1727878236669,-151.0,0.00017988,2]
[339703237,1727878236678,-4499.6559161,0.00017988,2]
[339703238,1727878236688,-4521.4109004,0.00017988,2]
[339703239,1727878236698,-846.3710138,0.00017988,2]
[339703240,1727878236708,-863.8219626,0.00017988,2]
[339703241,1727878236717,-401.31,0.0001799,2]
[339703242,1727878236726,-152.0,0.0001799,2]
[339703243,1727878236735,-172.050586,0.0001799,2]
[339703244,1727878236745,-151.0,0.0001799,2]
[339703245,1727878236754,-251.65062246,0.00017993,2]
[339703246,1727878236764,-1067.82524521,0.00017996,5]
[339703247,1727878236773,-3409.04391097,0.00017998,2]
[339703248,1727878236783,-1067.82524518,0.00017999,5]
[339703249,1727878236792,-1067.82524521,0.00017999,5]
[339703250,1727878236801,-1067.82524521,0.00017999,5]
[339703251,1727878236810,-1067.82524521,0.00017999,5]
[339703252,1727878236820,-1067.82524521,0.00017999,5]
[339703253,1727878236829,-150.0,0.00018,2]
[339703254,1727878236847,-150.0,0.00018,2]
[339703255,1727878236856,-150.0,0.00018,2]
[339703256,1727878236866,-272.21014943,0.00018,2]
[339703257,1727878236875,-150.00000001,0.00018,2]
[339703258,1727878236884,-999934.94511742,0.00018,4]
[339703259,1727878236907,-24796.87985765,0.00018,4]
[339703264,1727878238240,-225.32884435,0.0001379,2]
[339703265,1727878238249,-151.0,0.0001389,2]
[339703266,1727878238259,-130.02092119,0.00015124,2]
[339703267,1727878238271,-1053.97907881,0.00015124,2]
[339703268,1727878238283,-6753.51311033,0.00018,4]
[339703269,1727878238294,-485.28526725,0.00018,4]
[339703270,1727878238305,-460.89263148,0.00018,4]
[339703271,1727878238346,-362.78211077,0.00018,4]
[339703272,1727878238359,-1187.62330539,0.00018,4]
[339703273,1727878238371,-14103.48224663,0.00018,4]
[339703274,1727878238382,-688.5,0.00018,4]
[339703275,1727878238394,-2554.34123814,0.00018,4]
[339703276,1727878238406,-903.83149778,0.00018,4]
[339703277,1727878238417,-1005.69593398,0.00018,4]
[339703278,1727878238429,-2158.3984666,0.00018,4]
[339703279,1727878238440,-987.54270914,0.00018,4]
[339703280,1727878238452,-1287.77968216,0.00018,4]
[339703281,1727878238463,-4729.0105623,0.00018,4]
[339703282,1727878238475,-12580.60832712,0.00018,4]
[339703296,1727878239156,-2249.69587971,0.00018,4]
[339703302,1727878240220,-4112.68588915,0.00018,4]
[339703303,1727878240257,-2710.16331731,0.00018,4]
[339703304,1727878240371,-601321.99580917,0.00018,4]
[339703305,1727878240383,-1306.24411834,0.00018,4]
[339703306,1727878240395,-624.880552,0.00018,4]
[339703307,1727878240406,-453.16590618,0.00018,4]
[339703308,1727878240418,-2809.89847193,0.00018,4]
[339703309,1727878240433,-521.59343028,0.00018,4]
[339703310,1727878240445,-93995.86695843,0.00018,4]
[339703311,1727878240551,-410.2172962,0.00018,4]
[339703312,1727878240563,-565.55819318,0.00018,4]
[339703323,1727878243340,-225.32884433,0.00015832,2]
[339703324,1727878243349,-143.77804152,0.00018,4]
[339703328,1727878243443,-61288.62756908,0.00018,4]
[339703329,1727878243456,-20911.09610061,0.00018,4]
[339703330,1727878243555,-1597.49534063,0.00018,4]
[339703338,1727878246350,-1064.0,0.00018,2]
[339703339,1727878246360,-797.31775,0.00018,4]
[339703340,1727878246371,-3070.9,0.00018,4]
[339703341,1727878246382,-128421.87940769,0.00018,4]
[339703343,1727878246540,-1848.6204797,0.00018,4]
[339703380,1727878378034,1279.82778671,0.00022,120]
[339703384,1727878604343,1100.0,0.0001,2]
[339703406,1727879274104,1004.60875936,0.00013,15]
[339703446,1727879431514,-198.18,0.00010959,2]
[339703447,1727879431527,-105.2656781,0.00010959,2]
[339703448,1727879431541,-45.6043219,0.00010959,2]
[339703449,1727879431552,-509.22801043,0.00011,3]
[339703450,1727879431564,-250.0,0.00011,2]
[339703451,1727879431574,-395.96577847,0.00012,4]
[339703452,1727879431587,-704.03422153,0.00012,4]
[339703453,1727879431599,-300.0,0.00013,2]
[339703454,1727879431611,-570.73,0.00014621,2]
[339703455,1727879431622,-13621.9750024,0.0001498,2]
[339703456,1727879431634,-350.0,0.00015,2]
[339703457,1727879431646,-200.0,0.00015993,2]
[339703458,1727879431657,-1100.0,0.00016,7]
[339703459,1727879431668,-23900.0,0.00016026,2]
[339703460,1727879431683,-250.0,0.00016028,2]
[339703461,1727879431701,-150.0,0.0001603,2]
[339703462,1727879431712,-250.0,0.00016038,2]
[339703463,1727879431724,-499.99,0.00016038,2]
[339703464,1727879431734,-2751.0,0.00016046,2]
[339703465,1727879431744,-150.0,0.000162,2]
[339703466,1727879431760,-150.0,0.000162,2]
[339703467,1727879431771,-150.0,0.000162,2]
[339703468,1727879431782,-150.0,0.000162,2]
[339703469,1727879431794,-150.0,0.00016244,2]
[339703470,1727879431805,-452.0,0.00016249,2]
[339703471,1727879431815,-841.42,0.00016251,2]
[339703472,1727879431827,-2935.89,0.00016251,2]
[339703473,1727879431838,-4203.39,0.00016251,2]
[339703474,1727879431848,-500.0,0.00016259,2]
[339703475,1727879431859,-619.94,0.00016265,2]
[339703476,1727879431871,-250.0,0.00016276,2]
[339703477,1727879431882,-2715.52,0.00016335,2]
[339703478,1727879431894,-310.68,0.00016336,2]
[339703479,1727879431906,-299.99,0.00016336,4]
[339703480,1727879431917,-150.99,0.00016336,2]
[339703481,1727879431927,-614.38,0.00016351,2]
[339703482,1727879431938,-187.65,0.00016362,2]
[339703483,1727879431949,-150.0,0.00016364,2]
[339703484,1727879431960,-161.30712402,0.00016405,2]
[339703485,1727879431971,-14956.17269659,0.00016415,2]
[339703486,1727879437615,-1144.14223743,0.00016415,2]
[339703487,1727879437627,-1660.69198525,0.00016415,2]
[339703488,1727879437640,-7112.07212124,0.00016415,2]
[339703489,1727879437732,-1173.98706814,0.00016415,2]
[339703491,1727879437743,-2065.88764727,0.00016415,2]
[339703494,1727879437755,-10699.90087766,0.00016415,2]
[339703496,1727879437767,-1921.4169,0.00016415,2]
[339703552,1727879439492,-3075.2722,0.00016415,2]
[339703553,1727879439620,-17900.73576479,0.00016415,2]
[339703554,1727879439630,-24765.51,0.00016425,2]
[339703555,1727879439640,-150.22,0.00016438,2]
[339703556,1727879439657,-560.07,0.00016472,2]
[339703557,1727879439667,-150.0,0.00016527,2]
[339703558,1727879439676,-1000.0,0.00016575,2]
[339703559,1727879439688,-161.30712397,0.00016592,2]
[339703560,1727879439698,-150.0,0.0001665,2]
[339703561,1727879439707,-150.0,0.00016691,2]
[339703562,1727879439716,-156.69,0.00016739,2]
[339703563,1727879439727,-161.30712397,0.00016779,2]
[339703564,1727879439736,-150.0,0.00016855,2]
[339703565,1727879439745,-570.73,0.00016885,2]
[339703566,1727879439754,-196.3,0.00016955,2]
[339703567,1727879439766,-161.30712397,0.00016966,2]
[339703568,1727879439775,-400.0,0.00017,2]
[339703569,1727879439785,-900.0,0.00017,6]
[339703570,1727879439794,-150.0,0.00017018,2]
[339703571,1727879439803,-257.62,0.00017049,2]
[339703572,1727879439812,-150.0,0.000171,2]
[339703573,1727879439822,-150.0,0.000171,2]
[339703574,1727879439831,-1000.0,0.000171,2]
[339703575,1727879439841,-1323.0,0.000171,2]
[339703576,1727879439850,-1900.0,0.000171,6]
[339703577,1727879439860,-754.24,0.00017146,2]
[339703578,1727879439869,-428.61,0.00017146,2]
[339703579,1727879439878,-754.24,0.00017146,2]
[339703580,1727879439887,-423.25,0.00017146,2]
[339703581,1727879439899,-161.30712397,0.00017153,2]
[339703582,1727879439908,-187.65,0.0001718,2]
[339703583,1727879439918,-150.0,0.00017182,2]
[339703584,1727879439927,-2900.0,0.000172,6]
[339703585,1727879439936,-172.97,0.00017298,2]
[339703586,1727879439945,-3900.0,0.000173,6]
[339703587,1727879439954,-161.30712397,0.00017339,2]
[339703588,1727879439963,-150.0,0.00017345,2]
[339703589,1727879439972,-4900.0,0.000174,6]
[339703590,1727879439983,-150.22,0.00017466,2]
[339703591,1727879439991,-900.0,0.000175,6]
[339703592,1727879440001,-150.0,0.00017509,2]
[339703593,1727879440010,-161.30712397,0.00017526,2]
[339703594,1727879440019,-150.0,0.0001755,2]
[339703595,1727879440029,-900.0,0.000176,6]
[339703596,1727879440038,-150.0,0.00017673,2]
[339703597,1727879440047,-900.0,0.000177,6]
[339703598,1727879440056,-161.30712397,0.00017713,2]
[339703599,1727879440065,-150.078,0.00017721,2]
[339703600,1727879440074,-655.077,0.00017723,2]
[339703601,1727879440083,-422.42516304,0.00017784,2]
[339703602,1727879440092,-900.0,0.000178,6]
[339703603,1727879440101,-150.0,0.00017836,2]
[339703604,1727879440110,-4351.40800345,0.00017848,10]
[339703605,1727879440122,-648.59199655,0.00017848,10]
[339703606,1727879440131,-180.0,0.00017873,2]
[339703607,1727879440140,-151.5126436,0.00017879,2]
[339703608,1727879440152,-225.32884433,0.00017897,2]
[339703609,1727879440162,-189.18345033,0.000179,2]
[339703610,1727879440171,-1185.28482707,0.000179,2]
[339703611,1727879440179,-164.93870189,0.000179,2]